Workbook

Sheet Ark1
A1: NUGF Viborg - regnskab 2016
A3: Resultatopgørelse for perioden 1. januar til 31. december
B5: 2016 | C5: 2015 | D5: 2014 | E5: 2013 | F5: 2012
A6: Indtægter:
A7: Kontingenter | B7: =394498+11880-24291 -> 382087 | C7: 313231 | D7: 516281.87 | E7: 273352 | F7: 385427
A8: Tab kontingenter | B8: 0 | C8: -39173 | D8: 0 | E8: 0 | F8: -836
A9: Medlemstilskud/lokaletilskud | B9: =3126.14+6205+61920 -> 71251.14 | C9: =58425+29518.97 -> 87943.97 | D9: =44840+31744.31 -> 76584.31 | E9: =45180+20199.99 -> 65379.99 | F9: =38325+16288.68 -> 54613.68
A10: Sponsorater | B10: 5000 | C10: 6800 | D10: 17497.75 | E10: 24930 | F10: 14100
A11: Bandereklamer | B11: 0 | D11: 1875 | E11: 27262.5 | F11: 7418.75
A12: Indtægter klubhus | B12: -7671.47 | C12: -9204.7 | D12: -10113.47 | E12: -10247.4 | F12: -7242.41
A13: Indtægte sommerfest | B13: -2551.25 | C13: -8202.9 | D13: -2318.88 | E13: 6221.11 | F13: 9204
A14: Renteindtægter | B14: 0 | D14: 0 | E14: 391.91 | F14: 418.52
A15: Øvrige indtægter | B15: 14100 | C15: =70000+3000.14 -> 73000.14 | D15: 1986 | E15: 1554 | F15: 12558
A16: Indtægter i alt | B16: =SUM(B7:B15) -> 462215.42 | C16: 424394.51 | D16: 601792.58 | E16: 388844.11 | F16: 475661.54
A18: Udgifter:
A19: Fodbold:
A21: Turneringsudgifter | B21: =(-18086.02+61920) -> 43833.98 | C21: 79528.7 | D21: 99440.26 | E21: 99582.59 | F21: 82487.79
A22: Trænerudgifter | B22: 55800 | C22: 50778.5 | D22: 37300 | E22: 34960 | F22: 41579
A23: Bolde, materialer og tøj | B23: 24637.5 | C23: 24989.75 | D23: 96356.3 | E23: 150330.55 | F23: 124858.38
A24: Dommerudgifter | B24: 41392.39 | C24: 48014.66
A25: Kursus | B25: 2613.03 | C25: 6240 | D25: 14600 | E25: 0 | F25: 3000
A26: Halleje | B26: 42521.5 | C26: 14783 | D26: 37823.75 | E26: 35296 | F26: 28871.5
A27: Bøder | B27: 4925 | C27: 8175 | D27: 0 | E27: 0 | F27: 0
A29: Administration:
A30: Møder/arrangementer | B30: 51656.93 | C30: 24808.68 | D30: 20016.98 | E30: 16347.03 | F30: 18294.69
A31: Bogføringsassistance | B31: 1692.5 | C31: 5800
A32: Porto og gebyrer | B32: 1142.81 | C32: 1000 | D32: 1443.01 | E32: 3345 | F32: 10467.32
A33: Annoncer og reklamer | D33: 1026.15 | E33: 0 | F33: 0
A34: Gaver | B34: 7133.75 | C34: 5132 | D34: 192.95 | E34: 1100 | F34: 285
A35: Tlf og licenser | B35: 3533.5 | C35: 2825.54 | D35: 7633 | E35: 9401.36 | F35: 7097.74
A36: Kontorhold | B36: 0 | D36: 34 | E36: 0 | F36: 1094.7
A37: Kontingenter | B37: 7586.5 | C37: 5200
A38: Dataløn, Viborg Idrætsråd | B38: 8908.96 | C38: 8321.62 | D38: 9488.2 | E38: 4298 | F38: 3496.64
A40: Klubhus:
A41: Forbrugsudgifter | B41: 16259.66 | C41: 32380.75 | D41: 15413.71 | E41: 12304.21 | F41: =16842.58+6720.25 -> 23562.83
A42: Anskaffelser | B42: 2577.1 | C42: 8961.75 | D42: =9189.8+1622.2 -> 10812 | E42: =4435.37+1119.3 -> 5554.67 | F42: =16979.76+1840.99 -> 18820.75
A43: Lønninger | B43: 39999.41 | C43: 34807.56 | D43: 42100.68 | E43: 36468.53 | F43: 38624.83
A44: Klubhus renovering | B44: 22000 | C44: 224960.88
A45: Vedligeholdelse inde/ude | B45: 1248.85 | C45: 7974.11 | D45: =12728.75+974.1 -> 13702.85 | E45: 1929.38 | F45: =1492.5+1844.4 -> 3336.9
A46: Forsikringer | B46: 7205.68 | C46: 7105.58 | D46: 6995.71 | E46: 6838.75 | F46: 2460.97
A47: Diverse Indtægter/udgifter | B47: =-1200+47.93 -> -1152.07 | C47: 4997.28
A48: Omkostninger i alt | B48: =SUM(B21:B47) -> 385516.98 | C48: =SUM(C21:C47) -> 606785.36 | D48: =SUM(D21:D47) -> 414379.55 | E48: 417756.07 | F48: 408339.04
A50: Årets resultat | B50: =B16-B48 -> 76698.44 | C50: -182390.85 | D50: 187413.03 | E50: -28911.96 | F50: 67322.5
A52: Balance pr. 31.12
A54: Kassebeholdning | B54: 0 | C54: 0 | D54: 0 | E54: 369.25 | F54: 369.25
A55: Jyske Bank konto (inkl. Swipp&Mobilepay) | B55: =47706.8+6009+153592.25+9395.39+250000+18287.49 -> 484990.93 | C55: =244037.85+1843+23057.5+15032.39 -> 283970.74 | D55: 383044.83 | E55: 205880.55 | F55: 230519.51
A56: Kontant beholdning, kiosk | B56: 500 | C56: 500 | D56: 2000 | E56: 2000 | F56: 2000
A57: Varelager | B57: 0 | C57: 0 | D57: 3000 | E57: 3000 | F57: 3000
A58: Tilgodehavende kontingenter | B58: =57384-24291 -> 33093 | C58: 11279 | D58: 46850 | E58: 36232 | F58: 40505
A59: Tilgodehavende Sponsorater | B59: 14722 | C59: 0 | D59: 0 | E59: 0 | F59: 0
A60: Tilgodehavende, øvrige | B60: 979.62 | C60: 979.62 | D60: 0 | E60: 0 | F60: 0
A62: Aktiver i alt | B62: =SUM(B54:B61) -> 534285.55 | C62: =SUM(C54:C61) -> 296729.36 | D62: =SUM(D54:D61) -> 434894.83 | E62: =SUM(E54:E61) -> 247481.8 | F62: =SUM(F54:F61) -> 276393.76
A64: Egenkapital 01.01. | B64: 252503.84 | C64: 434894.69 | D64: 247481.66 | E64: 276393.62 | F64: =G66 -> 0
A65: Årets resultat | B65: 76698.44 | C65: -182390.85 | D65: =D50 -> 187413.03 | E65: =E50 -> -28911.96 | F65: =F50 -> 67322.5
A66: Egenkapital 31.12. | B66: =SUM(B64:B65) -> 329202.28 | C66: =SUM(C64:C65) -> 252503.84 | D66: =SUM(D64:D65) -> 434894.69 | E66: =SUM(E64:E65) -> 247481.66 | F66: =SUM(F64:F65) -> 67322.5
A68: Hensættelser, omklædningsrum | B68: =201914.5+2520.39 -> 204434.89 | C68: 38089.89
A69: Skyldige omkostninger | B69: 648.38 | C69: 6135.63 | D69: 0 | E69: 0 | F69: 0
A70: Skyldige moms | C70: 0 | D70: 0.14 | E70: 0.14
A71: Gæld i alt | B71: =SUM(B68:B70) -> 205083.27 | C71: =SUM(C68:C70) -> 44225.52 | D71: =SUM(D69:D70) -> 0.14 | E71: =SUM(E69:E70) -> 0.14 | F71: =SUM(F69:F70) -> 0
A73: Passiver i alt | B73: =B66+B71 -> 534285.55 | C73: =C66+C71 -> 296729.36 | D73: =D66+D71 -> 434894.83 | E73: =E66+E71 -> 247481.8 | F73: =F66+F71 -> 67322.5
A76: Foranstående regnskab er gennemgået og fundet i orden. Der er foretaget stikprøver af bilag,
A77: og disse er fundet i overensstemmelse med bogholderiet. Kasse og bank er afstemt.
A79: Viborg, d. 18. februar 2017
A82: Evan B. Pedersen, revisor | B82: Anders Hauge, Økonomiansvarlig

Sheet Ark2

Sheet Ark3
